[Event "CRO Team Cup 2018"]
[Site "Mali Losinj"]
[Date "2018.05.18"]
[Round "1.21"]
[White "Lalic, Bogdan"]
[Black "Rosic, Slavko S"]
[Result "1/2-1/2"]
[ECO "A19"]
[WhiteElo "2396"]
[BlackElo "2224"]
[Annotator "NA"]
[PlyCount "48"]
[EventDate "2018.??.??"]
[EventType "team-tourn"]
[EventCountry "CRO"]
[SourceTitle "playchess.com"]
[Source "ChessBase"]
[SourceQuality "1"]
[TimeControl "40/5400+30:1800+30"]

1. c4 {[%emt 0:00:30]} Nf6 {[%emt 0:01:00]} 2. Nc3 {[%emt 0:00:00]} e6 {[%emt 0:00:30]} 3. e4 {[%emt 0:00:00]} c5 {[%emt 0:01:30]} 4. e5 {[%emt 0:00:30]} Ng8 {[%emt 0:00:00]} 5. d4 {[%emt 0:00:00]} cxd4 {[%emt 0:00:00]} 6. Qxd4 {[%emt 0:00:00]} Nc6 {[%emt 0:00:30]} 7. Qe4 {[%emt 0:00:00]} d6 {[%emt 0:00:30]} 8. Nf3 {[%emt 0:00:00]} dxe5 {[%emt 0:01:30]} 9. Nxe5 {[%emt 0:00:30]} Nxe5 {[%emt 0:02:30] A19: English Opening: Flohr-Mikenas System with 3...c5} (9... Bd7 10. Nxd7 Qxd7 11. Bf4 Nf6 12. Qe3 Bd6 13. O-O-O Bxf4 14. Qxf4 Qe7 15. Be2 O-O 16. Qd6 Qxd6 17. Rxd6 Rfd8 18. Rxd8+ Rxd8 {1-0 (49) Grandelius,N (2646)-Svane,R (2587) Batumi 2018}) 10. Qxe5 {[%emt 0:00:30]} Qd6 {[%emt 0:00:30]} 11. Bf4 {[%emt 0:03:30]} Qxe5+ {[%emt 0:01:30]} 12. Bxe5 {[%emt 0:00:30]} f6 {[%emt 0:01:30]} 13. Bg3 $146 {[%emt 0:00:00]} ({Predecessor:} 13. Bd4 Bb4 14. a3 Bxc3+ 15. Bxc3 Bd7 16. Be2 Ne7 17. Bh5+ Ng6 18. Bb4 O-O-O 19. Bxg6 hxg6 20. O-O Ba4 21. Rfe1 e5 {½-½ (55) Peters,O (2145)-Duester,F (1791) Leverkusen 2004}) 13... Bd7 {[%emt 0:01:30]} 14. O-O-O {[%emt 0:01:00]} Bc6 {[%emt 0:01:30]} 15. Nb5 {[%emt 0:00:30]} Kf7 {[%emt 0:04:30]} 16. f3 {[%emt 0:01:30]} Bc5 {[%emt 0:02:30]} 17. Bd3 {[%emt 0:07:30]} e5 {[%emt 0:10:30]} 18. Rhe1 {[%emt 0:20:30]} Ne7 {[%emt 0:02:30]} 19. f4 {[%emt 0:00:00]} a6 {[%emt 0:09:30]} 20. Nc7 {[%emt 0:03:00]} exf4 {[%emt 0:02:30]} 21. Bxf4 {[%emt 0:00:30]} Rac8 {[%emt 0:00:30]} 22. Ne6 {[%emt 0:00:30]} Bb4 $11 {[%emt 0:01:30]} 23. Bd2 {[%emt 0:05:30]} Bd5 {[%emt 0:01:30]} 24. Nxg7 {[%emt 0:00:30]} Bxc4 {[%emt 0:00:30]} 1/2-1/2

[Event "CRO Team Cup 2018"]
[Site "Mali Losinj"]
[Date "2018.05.18"]
[Round "1.22"]
[White "Ljikar, Zoran"]
[Black "Plenkovic, Zdenko"]
[Result "0-1"]
[ECO "D01"]
[WhiteElo "2193"]
[BlackElo "2403"]
[Annotator "NA"]
[PlyCount "40"]
[EventDate "2018.??.??"]
[EventType "team-tourn"]
[EventCountry "CRO"]
[SourceTitle "playchess.com"]
[Source "ChessBase"]
[SourceQuality "1"]
[TimeControl "40/5400+30:1800+30"]

1. d4 {[%emt 0:00:30]} Nf6 {[%emt 0:02:00]} 2. Nc3 {[%emt 0:00:00]} d5 {[%emt 0:00:30]} 3. Bg5 {[%emt 0:00:00]} c6 {[%emt 0:02:30]} 4. f3 {[%emt 0:01:30]} Nbd7 {[%emt 0:02:30]} 5. e4 {[%emt 0:00:30]} dxe4 {[%emt 0:03:30]} 6. fxe4 {[%emt 0:00:00]} e5 {[%emt 0:05:30]} 7. dxe5 {[%emt 0:06:00]} Qa5 {[%emt 0:02:30]} 8. Nf3 {[%emt 0:08:30]} Nxe4 {[%emt 0:05:30] D01: Veresov Opening} 9. Be3 $146 {[%emt 0:07:30]} ({Predecessor:} 9. Bd2 $17 Nxd2 (9... Nxc3 10. Bxc3 Bb4 11. Qd2 Bxc3 12. Qxc3 Qxc3+ 13. bxc3 O-O 14. O-O-O Nc5 15. Bd3 Be6 16. a3 {½-½ (37) Guddat,J (2153)-Waldschmidt,G (2215) Germany 2010}) 10. Qxd2) 9... Nxc3 {[%emt 0:05:30]} 10. bxc3 {[%emt 0:03:30]} Nxe5 {[%emt 0:10:30]} 11. Bd4 {[%emt 0:00:30]} Nxf3+ {[%emt 0:00:30]} 12. Qxf3 {[%emt 0:00:00]} Be6 {[%emt 0:00:30]} 13. Qg3 $2 {[%emt 0:01:00] [#]} (13. Be2 $17 {might work better.}) 13... O-O-O $1 {[%emt 0:02:30]} 14. Kf2 $2 {[%emt 0:09:30]} (14. Rd1 Bc5 15. Bxc5 Qxc5 16. Bd3) 14... Rxd4 {[%emt 0:04:30]} 15. cxd4 {[%emt 0:00:00]} Qd2+ {[%emt 0:00:30]} 16. Be2 {[%emt 0:00:00]} Qxd4+ {[%emt 0:00:00]} 17. Qe3 {[%emt 0:00:30]} Bc5 $2 {[%emt 0:00:00]} (17... Qf6+ 18. Bf3 b6) 18. Qxd4 {[%emt 0:00:30]} Bxd4+ {[%emt 0:00:30]} 19. Kg3 {[%emt 0:00:30]} Bxa1 {[%emt 0:00:00]} 20. Rxa1 $19 {[%emt 0:00:30]} Kc7 {[%emt 0:00:00]} 0-1